[Event "*** Titled Tuesday Blitz"]
[Site "Chess.com"]
[Date "2020.05.19"]
[Round "3"]
[White "PauloCesarCosta_sad"]
[Black "kasparicy"]
[Result "0-1"]
[WhiteElo "2200"]
[BlackElo "2411"]
[TimeControl "180+1"]
[EndTime "12:29:04 PDT"]
[Termination "kasparicy won on time"]

1. Nf3 {[%clk 0:03:00.9]} 1... Nf6 {[%clk 0:02:57.2]} 2. c4 {[%clk 0:03:00.5]}
2... g6 {[%clk 0:02:57.4]} 3. g3 {[%clk 0:03:00.5]} 3... d5 {[%clk 0:02:57.2]}
4. Bg2 {[%clk 0:03:01.4]} 4... Bg7 {[%clk 0:02:57.6]} 5. O-O {[%clk 0:03:00.1]}
5... O-O {[%clk 0:02:58.1]} 6. d4 {[%clk 0:03:00.6]} 6... a5 {[%clk 0:02:55.3]}
7. cxd5 {[%clk 0:02:57.5]} 7... Nxd5 {[%clk 0:02:56.2]} 8. Nc3 {[%clk
0:02:57.8]} 8... Nb6 {[%clk 0:02:53.7]} 9. Bf4 {[%clk 0:02:54.5]} 9... Bg4
{[%clk 0:02:52.8]} 10. Be5 {[%clk 0:02:50.9]} 10... Nc6 {[%clk 0:02:48.7]} 11.
Bxg7 {[%clk 0:02:50.6]} 11... Kxg7 {[%clk 0:02:49.6]} 12. e3 {[%clk 0:02:40.9]}
12... a4 {[%clk 0:02:49.6]} 13. h3 {[%clk 0:02:39.7]} 13... Bd7 {[%clk
0:02:47.4]} 14. Ne4 {[%clk 0:02:34.5]} 14... Qc8 {[%clk 0:02:40.6]} 15. Nc5
{[%clk 0:02:34.2]} 15... Bxh3 {[%clk 0:02:37.6]} 16. Bxh3 {[%clk 0:02:31.3]}
16... Qxh3 {[%clk 0:02:38.5]} 17. Nxb7 {[%clk 0:02:31.4]} 17... a3 {[%clk
0:02:24.6]} 18. b3 {[%clk 0:02:30.1]} 18... Rfe8 {[%clk 0:02:20.1]} 19. Nc5
{[%clk 0:02:26.9]} 19... Rad8 {[%clk 0:02:19.8]} 20. Qc1 {[%clk 0:02:20]} 20...
Rd5 {[%clk 0:02:10]} 21. Nd3 {[%clk 0:01:29]} 21... Rh5 {[%clk 0:02:02.6]} 22.
Nh4 {[%clk 0:01:28.7]} 22... Rxh4 {[%clk 0:02:02.9]} 23. gxh4 {[%clk 0:01:28.2]}
23... Qg4+ {[%clk 0:02:02.9]} 24. Kh2 {[%clk 0:01:24.3]} 24... Qxh4+ {[%clk
0:02:03.5]} 25. Kg1 {[%clk 0:01:22.9]} 25... Qg4+ {[%clk 0:02:00.9]} 26. Kh2
{[%clk 0:01:22.5]} 26... Qe4 {[%clk 0:01:38.1]} 27. Qc5 {[%clk 0:01:09.2]} 27...
e5 {[%clk 0:01:28.3]} 28. Rac1 {[%clk 0:01:02.5]} 28... exd4 {[%clk 0:01:21.5]}
29. Qxc6 {[%clk 0:01:01.5]} 29... Nd5 {[%clk 0:00:43]} 30. exd4 {[%clk
0:00:26.3]} 30... Qh4+ {[%clk 0:00:37.5]} 31. Kg1 {[%clk 0:00:23.9]} 31... Re4
{[%clk 0:00:32.4]} 32. Qxd5 {[%clk 0:00:19.1]} 32... Qg4+ {[%clk 0:00:32]} 33.
Kh2 {[%clk 0:00:17.6]} 33... Qh4+ {[%clk 0:00:30.9]} 34. Kg1 {[%clk 0:00:17.8]}
34... Rg4+ {[%clk 0:00:30.6]} 35. Qg2 {[%clk 0:00:16.4]} 35... Rxg2+ {[%clk
0:00:23.8]} 36. Kxg2 {[%clk 0:00:16.5]} 36... Qe4+ {[%clk 0:00:23.7]} 37. Kg1
{[%clk 0:00:12.7]} 37... Qxd3 {[%clk 0:00:24.6]} 38. Rfd1 {[%clk 0:00:12]} 38...
Qe2 {[%clk 0:00:24.5]} 39. Re1 {[%clk 0:00:07.7]} 39... Qxa2 {[%clk 0:00:24.3]}
40. Rxc7 {[%clk 0:00:07.5]} 40... Qxb3 {[%clk 0:00:24.3]} 41. Ree7 {[%clk
0:00:05.3]} 41... a2 {[%clk 0:00:23.3]} 42. Ra7 {[%clk 0:00:03.8]} 42... Qb1+
{[%clk 0:00:22.3]} 43. Kg2 {[%clk 0:00:03.4]} 43... a1=Q {[%clk 0:00:22.7]} 44.
Rxf7+ {[%clk 0:00:02.1]} 44... Kh6 {[%clk 0:00:23]} 45. Rxh7+ {[%clk 0:00:02.2]}
45... Kg5 {[%clk 0:00:23.4]} 0-1

[Event "*** Titled Tuesday Blitz"]
[Site "Chess.com"]
[Date "2020.05.19"]
[Round "3"]
[White "Shushik"]
[Black "ChadBiryani"]
[Result "1-0"]
[WhiteElo "2094"]
[BlackElo "2305"]
[TimeControl "180+1"]
[EndTime "12:29:04 PDT"]
[Termination "Shushik won by checkmate"]

1. e4 {[%clk 0:03:00.9]} 1... g6 {[%clk 0:02:52]} 2. d4 {[%clk 0:03:00.8]} 2...
Bg7 {[%clk 0:02:52.1]} 3. Nc3 {[%clk 0:03:00.9]} 3... c5 {[%clk 0:02:49.9]} 4.
Nf3 {[%clk 0:02:54.2]} 4... cxd4 {[%clk 0:02:49.5]} 5. Nxd4 {[%clk 0:02:53.8]}
5... Nc6 {[%clk 0:02:50]} 6. Be3 {[%clk 0:02:51.5]} 6... d6 {[%clk 0:02:45.9]}
7. Qd2 {[%clk 0:02:46.8]} 7... Nf6 {[%clk 0:02:44.3]} 8. f3 {[%clk 0:02:46.1]}
8... O-O {[%clk 0:02:43.3]} 9. Bc4 {[%clk 0:02:46]} 9... Bd7 {[%clk 0:02:42.7]}
10. O-O-O {[%clk 0:02:43]} 10... Ne5 {[%clk 0:02:41.4]} 11. Bb3 {[%clk 0:02:43]}
11... Rc8 {[%clk 0:02:41.6]} 12. g4 {[%clk 0:02:38.1]} 12... Qa5 {[%clk
0:01:45.1]} 13. h4 {[%clk 0:02:16]} 13... h5 {[%clk 0:01:31.3]} 14. gxh5 {[%clk
0:01:59.5]} 14... Nxh5 {[%clk 0:01:32.2]} 15. Kb1 {[%clk 0:01:52.8]} 15... Kh7
{[%clk 0:01:19]} 16. Bg5 {[%clk 0:01:25.4]} 16... Rxc3 {[%clk 0:00:16.5]} 17.
Qxc3 {[%clk 0:01:23.3]} 17... Qxc3 {[%clk 0:00:16.3]} 18. bxc3 {[%clk
0:01:22.9]} 18... Re8 {[%clk 0:00:16.9]} 19. f4 {[%clk 0:01:19.6]} 19... Nc6
{[%clk 0:00:13.7]} 20. f5 {[%clk 0:01:02.2]} 20... Ng3 {[%clk 0:00:10.5]} 21.
Bxf7 {[%clk 0:00:54.2]} 21... Nxh1 {[%clk 0:00:06]} 22. Bxe8 {[%clk 0:00:51.8]}
22... Nf2 {[%clk 0:00:06.5]} 23. Bxg6+ {[%clk 0:00:49.7]} 23... Kh8 {[%clk
0:00:06.2]} 24. Re1 {[%clk 0:00:32.8]} 24... Nxd4 {[%clk 0:00:05]} 25. Be3
{[%clk 0:00:29.8]} 25... Ng4 {[%clk 0:00:01.4]} 26. Bxd4 {[%clk 0:00:28.9]}
26... Ne5 {[%clk 0:00:02.3]} 27. h5 {[%clk 0:00:19.9]} 27... Bc6 {[%clk
0:00:02.2]} 28. Re2 {[%clk 0:00:17.6]} 28... Kg8 {[%clk 0:00:02.5]} 29. Kb2
{[%clk 0:00:15.9]} 29... Kf8 {[%clk 0:00:02.9]} 30. Bxe5 {[%clk 0:00:14.5]}
30... Bxe5 {[%clk 0:00:01.5]} 31. h6 {[%clk 0:00:14.8]} 31... Bh8 {[%clk
0:00:02.2]} 32. h7 {[%clk 0:00:13.9]} 32... Bb5 {[%clk 0:00:02.3]} 33. Rh2
{[%clk 0:00:12.1]} 33... Bc6 {[%clk 0:00:02.6]} 34. Rh4 {[%clk 0:00:11.3]} 34...
Kg7 {[%clk 0:00:03.2]} 35. Rg4 {[%clk 0:00:11.4]} 35... Kf6 {[%clk 0:00:03.8]}
36. Kb3 {[%clk 0:00:11.4]} 36... Bd7 {[%clk 0:00:03.3]} 37. Bh5 {[%clk 0:00:10]}
37... Bg7 {[%clk 0:00:02]} 38. Rg6+ {[%clk 0:00:09.6]} 38... Ke5 {[%clk
0:00:02.2]} 39. Rxg7 {[%clk 0:00:09.7]} 39... Bb5 {[%clk 0:00:02.4]} 40. h8=Q
{[%clk 0:00:09.1]} 40... a5 {[%clk 0:00:03.3]} 41. Rg3+ {[%clk 0:00:08.5]} 41...
Kf4 {[%clk 0:00:04]} 42. Rf3+ {[%clk 0:00:07.7]} 42... Kxe4 {[%clk 0:00:03.5]}
43. Qd4# {[%clk 0:00:08.1]} 1-0

[Event "*** Titled Tuesday Blitz"]
[Site "Chess.com"]
[Date "2020.05.19"]
[Round "3"]
[White "IMTominho"]
[Black "gilbert_gm"]
[Result "1-0"]
[WhiteElo "2838"]
[BlackElo "2594"]
[TimeControl "180+1"]
[EndTime "12:29:05 PDT"]
[Termination "IMTominho won by resignation"]

1. d4 {[%clk 0:03:00.9]} 1... d5 {[%clk 0:02:59.2]} 2. Nf3 {[%clk 0:03:00.5]}
2... c6 {[%clk 0:02:59.3]} 3. c4 {[%clk 0:02:57.9]} 3... Nf6 {[%clk 0:02:58.9]}
4. Nc3 {[%clk 0:02:57.3]} 4... a6 {[%clk 0:02:57]} 5. a4 {[%clk 0:02:55.8]} 5...
e6 {[%clk 0:02:55.5]} 6. g3 {[%clk 0:02:55]} 6... a5 {[%clk 0:02:54.9]} 7. Bg2
{[%clk 0:02:53.7]} 7... Bd6 {[%clk 0:02:51.4]} 8. O-O {[%clk 0:02:51.1]} 8...
Nbd7 {[%clk 0:02:48.7]} 9. Qd3 {[%clk 0:02:42.7]} 9... O-O {[%clk 0:02:45.7]}
10. e4 {[%clk 0:02:40.9]} 10... dxc4 {[%clk 0:02:45.4]} 11. Qxc4 {[%clk
0:02:39.8]} 11... e5 {[%clk 0:02:46.3]} 12. Rd1 {[%clk 0:02:35]} 12... Qe7
{[%clk 0:02:41.7]} 13. h3 {[%clk 0:02:32.9]} 13... exd4 {[%clk 0:02:31]} 14.
Nxd4 {[%clk 0:02:33.8]} 14... Ne5 {[%clk 0:02:30.1]} 15. Qe2 {[%clk 0:02:25.4]}
15... Bc5 {[%clk 0:02:17.3]} 16. f4 {[%clk 0:02:22.5]} 16... Ng6 {[%clk
0:02:17]} 17. Be3 {[%clk 0:02:18.9]} 17... Re8 {[%clk 0:02:13]} 18. Kh2 {[%clk
0:02:17.9]} 18... Bb4 {[%clk 0:02:04.9]} 19. e5 {[%clk 0:02:16.1]} 19... Bxc3
{[%clk 0:01:59.6]} 20. bxc3 {[%clk 0:02:16]} 20... Nd5 {[%clk 0:01:59.7]} 21.
Bd2 {[%clk 0:02:11.8]} 21... Nf8 {[%clk 0:01:56.3]} 22. Re1 {[%clk 0:02:09.6]}
22... g6 {[%clk 0:01:52.6]} 23. Rad1 {[%clk 0:02:09]} 23... Ne6 {[%clk
0:01:49.3]} 24. Nf3 {[%clk 0:02:04]} 24... Nc5 {[%clk 0:01:46.3]} 25. Ra1 {[%clk
0:02:00.1]} 25... Nb3 {[%clk 0:01:44.2]} 26. Rab1 {[%clk 0:01:56.9]} 26... Nxd2
{[%clk 0:01:44.3]} 27. Qxd2 {[%clk 0:01:55.5]} 27... Bf5 {[%clk 0:01:43.3]} 28.
Rb3 {[%clk 0:01:50.4]} 28... Rad8 {[%clk 0:01:42.9]} 29. Qf2 {[%clk 0:01:47.2]}
29... Qc7 {[%clk 0:01:34.6]} 30. Qa7 {[%clk 0:01:43.6]} 30... b5 {[%clk
0:01:31.3]} 31. Qxc7 {[%clk 0:01:43.3]} 31... Nxc7 {[%clk 0:01:32.2]} 32. Nd4
{[%clk 0:01:44.2]} 32... Be6 {[%clk 0:01:24.4]} 33. Rbb1 {[%clk 0:01:37.4]}
33... bxa4 {[%clk 0:01:15]} 34. Bxc6 {[%clk 0:01:36.9]} 34... Bd7 {[%clk
0:01:09]} 35. Bxd7 {[%clk 0:01:34.7]} 35... Rxd7 {[%clk 0:01:09.9]} 36. Ra1
{[%clk 0:01:32.5]} 36... Nd5 {[%clk 0:01:06.2]} 37. Nb5 {[%clk 0:01:30.6]} 37...
Rb8 {[%clk 0:01:01.9]} 38. c4 {[%clk 0:01:28]} 38... Nb6 {[%clk 0:00:59.6]} 39.
Nd6 {[%clk 0:01:28.2]} 39... Rc7 {[%clk 0:00:33.9]} 40. Rec1 {[%clk 0:01:25.5]}
40... Nc8 {[%clk 0:00:30.2]} 41. c5 {[%clk 0:01:23.6]} 41... Rb2+ {[%clk
0:00:29.2]} 42. Kg1 {[%clk 0:01:19.1]} 42... Ne7 {[%clk 0:00:28.9]} 43. Rxa4
{[%clk 0:01:15.1]} 43... Nc6 {[%clk 0:00:27.3]} 44. Rac4 {[%clk 0:01:12.6]}
44... Nb4 {[%clk 0:00:23.6]} 45. c6 {[%clk 0:01:10.2]} 45... a4 {[%clk
0:00:22.4]} 46. Nb5 {[%clk 0:01:09]} 46... Rc8 {[%clk 0:00:22]} 47. c7 {[%clk
0:01:06.7]} 47... Na6 {[%clk 0:00:19.7]} 48. Rxa4 {[%clk 0:01:04.2]} 48... Nxc7
{[%clk 0:00:18.4]} 49. Rxc7 {[%clk 0:00:55]} 49... Rd8 {[%clk 0:00:18.2]} 50.
Nd6 {[%clk 0:00:53]} 50... Rdb8 {[%clk 0:00:18.2]} 51. Rc8+ {[%clk 0:00:52.8]}
51... Rxc8 {[%clk 0:00:17.8]} 52. Nxc8 {[%clk 0:00:53.7]} 52... h5 {[%clk
0:00:18.4]} 53. Ne7+ {[%clk 0:00:51.5]} 53... Kg7 {[%clk 0:00:19.3]} 54. Nd5
{[%clk 0:00:51.7]} 54... h4 {[%clk 0:00:19.5]} 55. gxh4 {[%clk 0:00:51.3]} 55...
Kh6 {[%clk 0:00:20.2]} 56. Nf6 {[%clk 0:00:51.3]} 56... g5 {[%clk 0:00:20.1]}
57. hxg5+ {[%clk 0:00:50.7]} 57... Kg6 {[%clk 0:00:21]} 58. h4 {[%clk
0:00:51.1]} 58... Kf5 {[%clk 0:00:21.9]} 59. h5 {[%clk 0:00:51.7]} 59... Ke6
{[%clk 0:00:20.5]} 60. h6 {[%clk 0:00:51.6]} 60... Kf5 {[%clk 0:00:21.1]} 61. h7
{[%clk 0:00:52]} 61... Rb8 {[%clk 0:00:20.7]} 62. Ng8 {[%clk 0:00:52.4]} 62...
Kg4 {[%clk 0:00:20.2]} 63. h8=Q {[%clk 0:00:52.3]} 63... Rb1+ {[%clk 0:00:20]}
64. Kf2 {[%clk 0:00:51.6]} 64... Rb2+ {[%clk 0:00:20.9]} 65. Ke3 {[%clk
0:00:52]} 65... Rb3+ {[%clk 0:00:21.3]} 66. Ke4 {[%clk 0:00:52.4]} 66... Rb4+
{[%clk 0:00:19.4]} 67. Rxb4 {[%clk 0:00:52.2]} 1-0

[Event "*** Titled Tuesday Blitz"]
[Site "Chess.com"]
[Date "2020.05.19"]
[Round "3"]
[White "JonahWillow"]
[Black "GM_LOADING"]
[Result "0-1"]
[WhiteElo "2690"]
[BlackElo "2445"]
[TimeControl "180+1"]
[EndTime "12:29:05 PDT"]
[Termination "GM_LOADING won by resignation"]

1. e4 {[%clk 0:03:00.9]} 1... e5 {[%clk 0:02:59.7]} 2. Nf3 {[%clk 0:02:59]} 2...
Nc6 {[%clk 0:02:59.7]} 3. Nc3 {[%clk 0:02:59.1]} 3... Nf6 {[%clk 0:02:59.6]} 4.
Bb5 {[%clk 0:02:57.9]} 4... Bb4 {[%clk 0:02:59.4]} 5. O-O {[%clk 0:02:57.5]}
5... O-O {[%clk 0:02:57.9]} 6. d3 {[%clk 0:02:57.7]} 6... Bxc3 {[%clk
0:02:57.8]} 7. bxc3 {[%clk 0:02:58.6]} 7... d6 {[%clk 0:02:57.1]} 8. Bg5 {[%clk
0:02:57.5]} 8... Qe7 {[%clk 0:02:57.1]} 9. Re1 {[%clk 0:02:56.9]} 9... a6 {[%clk
0:02:49.3]} 10. Bc4 {[%clk 0:02:54.5]} 10... Be6 {[%clk 0:02:42.8]} 11. Bb3
{[%clk 0:02:50.3]} 11... h6 {[%clk 0:02:32.6]} 12. Bh4 {[%clk 0:02:48.9]} 12...
Rae8 {[%clk 0:01:42.2]} 13. h3 {[%clk 0:02:22.4]} 13... Nb8 {[%clk 0:01:11.3]}
14. Rb1 {[%clk 0:02:18.5]} 14... b6 {[%clk 0:01:05]} 15. d4 {[%clk 0:01:49.5]}
15... Bxb3 {[%clk 0:00:55.7]} 16. axb3 {[%clk 0:01:42.9]} 16... a5 {[%clk
0:00:55.6]} 17. Qd3 {[%clk 0:01:34.4]} 17... Nbd7 {[%clk 0:00:49.1]} 18. Qc4
{[%clk 0:01:32.5]} 18... Rc8 {[%clk 0:00:46.1]} 19. Rbd1 {[%clk 0:01:30.2]}
19... g5 {[%clk 0:00:19.7]} 20. Bg3 {[%clk 0:01:26.8]} 20... Nh5 {[%clk
0:00:19.7]} 21. Bh2 {[%clk 0:01:23.3]} 21... Nf4 {[%clk 0:00:18.3]} 22. Qf1
{[%clk 0:01:19.6]} 22... Qf6 {[%clk 0:00:12.7]} 23. Bg3 {[%clk 0:01:08.4]} 23...
Nxh3+ {[%clk 0:00:10.7]} 24. gxh3 {[%clk 0:00:52.7]} 24... Qxf3 {[%clk
0:00:10.9]} 25. Qb5 {[%clk 0:00:51.7]} 25... Rcd8 {[%clk 0:00:07.4]} 26. dxe5
{[%clk 0:00:45.7]} 26... Nxe5 {[%clk 0:00:08.3]} 27. Bxe5 {[%clk 0:00:45.8]}
27... dxe5 {[%clk 0:00:09.2]} 28. Rxd8 {[%clk 0:00:46.7]} 28... Rxd8 {[%clk
0:00:09.4]} 29. Qxe5 {[%clk 0:00:47.4]} 29... Rd2 {[%clk 0:00:07.9]} 30. Rf1
{[%clk 0:00:39.7]} 30... Rxc2 {[%clk 0:00:08.2]} 31. Qxc7 {[%clk 0:00:39.4]}
31... Rxc3 {[%clk 0:00:08]} 32. Qd8+ {[%clk 0:00:36.4]} 32... Kh7 {[%clk
0:00:05.8]} 33. Qxb6 {[%clk 0:00:33.3]} 33... Qxe4 {[%clk 0:00:04]} 34. Qa7
{[%clk 0:00:06.2]} 34... Qd5 {[%clk 0:00:03.1]} 35. f3 {[%clk 0:00:04.5]} 35...
Rc2 {[%clk 0:00:03.3]} 36. Qe3 {[%clk 0:00:03.2]} 36... Qd6 {[%clk 0:00:02.7]}
37. Qe4+ {[%clk 0:00:03.6]} 37... Kg7 {[%clk 0:00:02.4]} 38. Rf2 {[%clk
0:00:02.7]} 38... Qg3+ {[%clk 0:00:03.3]} 39. Kh1 {[%clk 0:00:02.6]} 39... Qxf2
{[%clk 0:00:03.6]} 40. Qd4+ {[%clk 0:00:03.3]} 40... Kh7 {[%clk 0:00:04.3]} 0-1

[Event "*** Titled Tuesday Blitz"]
[Site "Chess.com"]
[Date "2020.05.19"]
[Round "3"]
[White "AlexTruskavetsky"]
[Black "GukeshDommaraju"]
[Result "1/2-1/2"]
[WhiteElo "2430"]
[BlackElo "2682"]
[TimeControl "180+1"]
[EndTime "12:29:05 PDT"]
[Termination "Game drawn by repetition"]

1. d4 {[%clk 0:03:00.9]} 1... Nf6 {[%clk 0:02:59.1]} 2. Bg5 {[%clk 0:03:00.7]}
2... d5 {[%clk 0:02:55.9]} 3. Bxf6 {[%clk 0:03:00]} 3... exf6 {[%clk 0:02:56.4]}
4. e3 {[%clk 0:02:59.8]} 4... Bd6 {[%clk 0:02:55.5]} 5. c4 {[%clk 0:02:57.1]}
5... dxc4 {[%clk 0:02:54.6]} 6. Bxc4 {[%clk 0:02:54.7]} 6... O-O {[%clk
0:02:55.5]} 7. Nc3 {[%clk 0:02:51.9]} 7... c6 {[%clk 0:02:51.5]} 8. Nge2 {[%clk
0:02:38.8]} 8... Nd7 {[%clk 0:02:50.5]} 9. O-O {[%clk 0:02:35.6]} 9... f5 {[%clk
0:02:33.9]} 10. g3 {[%clk 0:02:34.1]} 10... Nf6 {[%clk 0:02:33.3]} 11. Rb1
{[%clk 0:02:18.3]} 11... a5 {[%clk 0:02:31]} 12. a3 {[%clk 0:02:16.7]} 12... a4
{[%clk 0:02:21.8]} 13. Qc2 {[%clk 0:02:13.1]} 13... b5 {[%clk 0:02:19.5]} 14.
Bd3 {[%clk 0:02:12.4]} 14... g6 {[%clk 0:02:20.4]} 15. Rfd1 {[%clk 0:02:07.9]}
15... Be6 {[%clk 0:02:18.3]} 16. Qd2 {[%clk 0:01:57.8]} 16... Qe7 {[%clk
0:01:59.7]} 17. Nf4 {[%clk 0:01:55.5]} 17... Bxf4 {[%clk 0:01:58.8]} 18. exf4
{[%clk 0:01:54.5]} 18... Rfd8 {[%clk 0:01:56.3]} 19. Qe3 {[%clk 0:01:38.2]}
19... Qd7 {[%clk 0:01:55.6]} 20. Be2 {[%clk 0:01:33.8]} 20... Bb3 {[%clk
0:01:44]} 21. Rd2 {[%clk 0:01:31.6]} 21... Re8 {[%clk 0:01:43.2]} 22. Qf3 {[%clk
0:01:28.7]} 22... Ne4 {[%clk 0:01:42]} 23. Nxe4 {[%clk 0:01:20.4]} 23... Rxe4
{[%clk 0:01:41.4]} 24. Qc3 {[%clk 0:01:13.4]} 24... Rae8 {[%clk 0:01:38.5]} 25.
Bf1 {[%clk 0:00:56.7]} 25... Bd5 {[%clk 0:01:23.8]} 26. Rc2 {[%clk 0:00:47.7]}
26... Qe6 {[%clk 0:01:22]} 27. Rcc1 {[%clk 0:00:42]} 27... Qf6 {[%clk
0:01:02.4]} 28. Bg2 {[%clk 0:00:38.2]} 28... Rxd4 {[%clk 0:00:52.7]} 29. Bxd5
{[%clk 0:00:36]} 29... cxd5 {[%clk 0:00:53.6]} 30. Re1 {[%clk 0:00:34.3]} 30...
Rxe1+ {[%clk 0:00:52.6]} 31. Rxe1 {[%clk 0:00:33.1]} 31... Kg7 {[%clk
0:00:52.8]} 32. Re5 {[%clk 0:00:20.1]} 32... Rd1+ {[%clk 0:00:48.7]} 33. Kg2
{[%clk 0:00:20.5]} 33... d4 {[%clk 0:00:44.5]} 34. Qc5 {[%clk 0:00:20.2]} 34...
d3 {[%clk 0:00:43]} 35. Re8 {[%clk 0:00:18.9]} 35... h5 {[%clk 0:00:37.1]} 36.
Qf8+ {[%clk 0:00:17]} 36... Kh7 {[%clk 0:00:37.4]} 37. Qg8+ {[%clk 0:00:15.3]}
37... Kh6 {[%clk 0:00:37.3]} 38. Rf8 {[%clk 0:00:11.3]} 38... d2 {[%clk
0:00:32.8]} 39. Rxf7 {[%clk 0:00:09.8]} 39... Rg1+ {[%clk 0:00:32.8]} 40. Kh3
{[%clk 0:00:09.4]} 40... Qxf7 {[%clk 0:00:19.4]} 41. Qxf7 {[%clk 0:00:10.1]}
41... d1=Q {[%clk 0:00:19.7]} 42. Qf8+ {[%clk 0:00:09.7]} 42... Kh7 {[%clk
0:00:20.6]} 43. Qf7+ {[%clk 0:00:09.7]} 43... Kh6 {[%clk 0:00:21]} 44. Qf8+
{[%clk 0:00:09.5]} 44... Kh7 {[%clk 0:00:21.4]} 45. Qf7+ {[%clk 0:00:09.3]}
45... Kh8 {[%clk 0:00:21.8]} 46. Qf8+ {[%clk 0:00:09.1]} 46... Kh7 {[%clk
0:00:22.1]} 1/2-1/2

[Event "*** Titled Tuesday Blitz"]
[Site "Chess.com"]
[Date "2020.05.19"]
[Round "3"]
[White "saisree"]
[Black "Mizner"]
[Result "0-1"]
[WhiteElo "2352"]
[BlackElo "2552"]
[TimeControl "180+1"]
[EndTime "12:29:06 PDT"]
[Termination "Mizner won by resignation"]

1. e4 {[%clk 0:03:00.9]} 1... e6 {[%clk 0:03:00.2]} 2. d4 {[%clk 0:03:00.8]}
2... d5 {[%clk 0:03:01.1]} 3. Nd2 {[%clk 0:03:01.4]} 3... c5 {[%clk 0:03:01.4]}
4. exd5 {[%clk 0:03:00.8]} 4... Qxd5 {[%clk 0:03:02]} 5. Ngf3 {[%clk 0:03:01.4]}
5... cxd4 {[%clk 0:03:02.4]} 6. Bc4 {[%clk 0:03:02.1]} 6... Qc5 {[%clk
0:03:02.4]} 7. O-O {[%clk 0:03:02.6]} 7... Nc6 {[%clk 0:03:02.8]} 8. a3 {[%clk
0:02:43.6]} 8... Nf6 {[%clk 0:02:57.4]} 9. b4 {[%clk 0:02:42.9]} 9... Qb6 {[%clk
0:02:57.6]} 10. Bb2 {[%clk 0:02:38]} 10... Be7 {[%clk 0:02:57.4]} 11. Nb3 {[%clk
0:02:37.5]} 11... O-O {[%clk 0:02:40.7]} 12. Nbxd4 {[%clk 0:02:27.8]} 12... Rd8
{[%clk 0:02:36]} 13. Nxc6 {[%clk 0:02:26.8]} 13... Rxd1 {[%clk 0:02:13.9]} 14.
Nxe7+ {[%clk 0:02:26]} 14... Kf8 {[%clk 0:02:14.1]} 15. Rfxd1 {[%clk 0:02:14.8]}
15... Kxe7 {[%clk 0:02:13.4]} 16. Bd4 {[%clk 0:02:15.5]} 16... Qc7 {[%clk
0:01:55.6]} 17. Bc5+ {[%clk 0:02:12.5]} 17... Ke8 {[%clk 0:01:55.9]} 18. Rd2
{[%clk 0:01:50.8]} 18... Bd7 {[%clk 0:01:14.8]} 19. Bb3 {[%clk 0:01:47.7]} 19...
Ne4 {[%clk 0:01:09.9]} 20. Rd3 {[%clk 0:01:41.5]} 20... Nxc5 {[%clk 0:01:07.8]}
21. bxc5 {[%clk 0:01:42.4]} 21... Qxc5 {[%clk 0:01:03.1]} 22. Rad1 {[%clk
0:01:43]} 22... Bb5 {[%clk 0:01:01.3]} 23. R3d2 {[%clk 0:01:35.1]} 23... Qxa3
{[%clk 0:00:53.7]} 24. Ng5 {[%clk 0:01:26.4]} 24... h6 {[%clk 0:00:49.5]} 25.
Ne4 {[%clk 0:01:25.9]} 25... Ke7 {[%clk 0:00:47.9]} 26. Nd6 {[%clk 0:01:23]}
26... Bc6 {[%clk 0:00:47.9]} 27. Nxb7 {[%clk 0:01:21.3]} 27... Bxb7 {[%clk
0:00:46.1]} 28. Rd7+ {[%clk 0:01:21.5]} 28... Kf6 {[%clk 0:00:45.9]} 29. Rxb7
{[%clk 0:01:22.1]} 29... a5 {[%clk 0:00:43.5]} 30. h3 {[%clk 0:01:06.6]} 30...
a4 {[%clk 0:00:43.5]} 31. Bc4 {[%clk 0:01:05.2]} 31... Qc3 {[%clk 0:00:43.4]}
32. Rc7 {[%clk 0:01:00.9]} 32... a3 {[%clk 0:00:26.3]} 33. Rdd7 {[%clk
0:00:59.5]} 33... Rf8 {[%clk 0:00:15.7]} 34. Bb3 {[%clk 0:00:50.9]} 34... Qa1+
{[%clk 0:00:14.9]} 35. Kh2 {[%clk 0:00:51.2]} 35... a2 {[%clk 0:00:15]} 36. f4
{[%clk 0:00:15.5]} 36... Qb2 {[%clk 0:00:14.7]} 37. Bxa2 {[%clk 0:00:11.8]}
37... Qxa2 {[%clk 0:00:14.6]} 38. c4 {[%clk 0:00:08.8]} 38... Qf2 {[%clk
0:00:13.5]} 39. c5 {[%clk 0:00:07.1]} 39... Qxf4+ {[%clk 0:00:13.2]} 40. Kg1
{[%clk 0:00:07.8]} 40... g5 {[%clk 0:00:12.2]} 41. c6 {[%clk 0:00:07.8]} 41...
Qc1+ {[%clk 0:00:11.6]} 42. Kh2 {[%clk 0:00:07.1]} 42... Qf4+ {[%clk 0:00:11.8]}
43. Kg1 {[%clk 0:00:07.1]} 43... Kg6 {[%clk 0:00:12.1]} 44. Re7 {[%clk
0:00:06.7]} 44... Ra8 {[%clk 0:00:11.6]} 0-1